[Event "GER-ch Youth-U12 2024"]
[Site "Willingen"]
[Date "2024.05.20"]
[Round "3"]
[White "Rodriguez Klasen, Ennio"]
[Black "Vu Hoang Bach"]
[Result "0-1"]
[ECO "C01"]
[WhiteElo "1802"]
[BlackElo "1677"]
[Annotator "NA RC"]
[PlyCount "32"]
[EventDate "2022.06.05"]
[EventType "swiss"]
[EventRounds "9"]
[EventCountry "GER"]
[SourceTitle "playchess.com"]
[Source "ChessBase"]
[SourceQuality "1"]
[TimeControl "40/4500+30:900+30"]

1. e4 {[%emt 0:00:00]} e6 {[%emt 0:00:00]} 2. d4 {[%emt 0:00:00]} d5 {[%emt 0:00:00]} 3. exd5 {[%emt 0:00:00]} exd5 {[%emt 0:00:00]} 4. Nc3 {[%emt 0:00:00]} Nc6 {[%emt 0:00:00]} 5. Bf4 {[%emt 0:00:00]} Bb4 {[%emt 0:00:00]} 6. Qd2 {[%emt 0:00:00]} Nf6 {[%emt 0:00:00]} 7. f3 {[%emt 0:00:00]} Be6 {[%emt 0:00:00]} 8. O-O-O {[%emt 0:00:00]} O-O {[%emt 0:00:00]} 9. h4 {[%emt 0:00:00]} Na5 {[%emt 0:00:00]} 10. g4 {[%emt 0:04:01]} Nc4 {[%emt 0:00:00]} 11. Qd3 {[%emt 0:00:40]} c5 {[%emt 0:01:11]} 12. h5 {[%emt 0:14:03]} Qa5 {[%emt 0:00:00]} 13. g5 {[%emt 0:18:12]} Nxb2 {[%emt 0:00:00]} 14. Kxb2 {[%emt 0:01:15]} c4 {[%emt 0:00:00]} 15. Qe3 {[%emt 0:09:17]} Qa3+ {[%emt 0:00:00]} 16. Kb1 {[%emt 0:00:07]} Bxc3 {[%emt 0:00:00]} 0-1

[Event "GER-ch Youth-U12 2024"]
[Site "Willingen"]
[Date "2024.05.20"]
[Round "3"]
[White "Vartanian, Roman"]
[Black "Marynychenko, Yehor"]
[Result "1/2-1/2"]
[ECO "E68"]
[WhiteElo "1797"]
[BlackElo "1896"]
[Annotator "NA"]
[PlyCount "189"]
[EventDate "2022.06.05"]
[EventType "swiss"]
[EventRounds "9"]
[EventCountry "GER"]
[SourceTitle "playchess.com"]
[Source "ChessBase"]
[SourceQuality "1"]
[TimeControl "40/4500+30:900+30"]

1. d4 {[%emt 0:00:00]} Nf6 {[%emt 0:00:00]} 2. c4 {[%emt 0:00:00]} g6 {[%emt 0:00:00]} 3. Nf3 {[%emt 0:00:00]} Bg7 {[%emt 0:00:00]} 4. g3 {[%emt 0:00:00]} O-O {[%emt 0:00:00]} 5. Bg2 {[%emt 0:00:00]} d6 {[%emt 0:00:00]} 6. O-O {[%emt 0:00:00]} Nbd7 {[%emt 0:00:00]} 7. Nc3 {[%emt 0:00:00]} e5 {[%emt 0:00:00]} 8. e4 {[%emt 0:00:00]} Re8 {[%emt 0:00:00]} 9. d5 {[%emt 0:00:00]} Nc5 {[%emt 0:00:00]} 10. Qc2 {[%emt 0:00:00]} a5 {[%emt 0:00:00]} 11. Be3 {[%emt 0:00:00]} Bg4 {[%emt 0:00:00]} 12. h3 {[%emt 0:00:00]} Bxf3 {[%emt 0:00:00]} 13. Bxf3 {[%emt 0:00:00]} Nfd7 {[%emt 0:00:00]} 14. Bg2 {[%emt 0:03:21]} Nb6 {[%emt 0:00:00]} 15. b3 {[%emt 0:00:16]} Qd7 {[%emt 0:01:25]} 16. Rae1 {[%emt 0:05:49]} f5 {[%emt 0:07:19]} 17. h4 {[%emt 0:03:11]} f4 {[%emt 0:14:32]} 18. Bxc5 {[%emt 0:05:31]} dxc5 {[%emt 0:00:52]} 19. Kh2 {[%emt 0:00:17]} Rf8 {[%emt 0:03:34]} 20. Bh3 {[%emt 0:02:11]} Qe7 {[%emt 0:01:27]} 21. Qe2 {[%emt 0:02:46]} h5 {[%emt 0:02:41]} 22. Rg1 {[%emt 0:06:06]} Kh7 {[%emt 0:05:24]} 23. g4 {[%emt 0:06:43]} Qxh4 {[%emt 0:03:57]} 24. Qf3 {[%emt 0:01:05]} hxg4 {[%emt 0:09:14]} 25. Rxg4 {[%emt 0:06:12]} Qe7 {[%emt 0:04:08]} 26. Reg1 {[%emt 0:16:48]} Rf6 {[%emt 0:01:57]} 27. Rxg6 {[%emt 0:00:18]} Rxg6 {[%emt 0:00:06]} 28. Bf5 {[%emt 0:00:13]} Qh4+ {[%emt 0:00:08]} 29. Qh3 {[%emt 0:00:07]} Qxh3+ {[%emt 0:00:05]} 30. Kxh3 {[%emt 0:00:05]} Kg8 {[%emt 0:02:17]} 31. Rxg6 {[%emt 0:00:33]} Rd8 {[%emt 0:04:20]} 32. Nb5 {[%emt 0:02:21]} Na8 {[%emt 0:00:24]} 33. d6 {[%emt 0:01:03]} cxd6 {[%emt 0:03:36]} 34. Rxd6 {[%emt 0:00:22]} Rb8 {[%emt 0:13:37]} 35. Rd5 {[%emt 0:02:57]} Bf6 {[%emt 0:05:54]} 36. Rxc5 {[%emt 0:00:58]} Rd8 {[%emt 0:02:12]} 37. Rd5 {[%emt 0:06:14]} Kf8 {[%emt 0:00:26]} 38. Be6 {[%emt 0:01:51]} Re8 {[%emt 0:01:06]} 39. Rd6 {[%emt 0:00:59]} Be7 {[%emt 0:00:19]} 40. Rd7 {[%emt 0:01:41]} Rb8 {[%emt 0:00:11]} 41. Bd5 {[%emt 0:15:33]} Nb6 {[%emt 0:15:53]} 42. Rxb7 {[%emt 0:00:17]} Rxb7 {[%emt 0:00:07]} 43. Bxb7 {[%emt 0:00:07]} Bc5 {[%emt 0:00:16]} 44. f3 {[%emt 0:00:06]} Ke7 {[%emt 0:00:37]} 45. Bc6 {[%emt 0:00:40]} Nc8 {[%emt 0:00:42]} 46. Bd5 {[%emt 0:03:34]} Na7 {[%emt 0:01:45]} 47. Nc3 {[%emt 0:00:32]} Bd4 {[%emt 0:00:54]} 48. Nb1 {[%emt 0:00:34]} Kd6 {[%emt 0:00:36]} 49. Kg2 {[%emt 0:00:19]} Nc8 {[%emt 0:00:17]} 50. Kf1 {[%emt 0:00:12]} Ne7 {[%emt 0:00:53]} 51. Ke2 {[%emt 0:00:20]} Ng6 {[%emt 0:01:45]} 52. Bf7 {[%emt 0:00:12]} Ne7 {[%emt 0:00:21]} 53. Kd3 {[%emt 0:00:49]} Nc6 {[%emt 0:00:12]} 54. a3 {[%emt 0:00:16]} Bc5 {[%emt 0:00:15]} 55. Bh5 {[%emt 0:01:01]} Nd4 {[%emt 0:00:15]} 56. Kc3 {[%emt 0:00:20]} Ne2+ {[%emt 0:00:35]} 57. Kb2 {[%emt 0:00:57]} Bd4+ {[%emt 0:00:20]} 58. Kc2 {[%emt 0:00:05]} Bc5 {[%emt 0:00:06]} 59. Bg4 {[%emt 0:00:47]} Kc6 {[%emt 0:00:22]} 60. Kb2 {[%emt 0:00:16]} Bd4+ {[%emt 0:00:11]} 61. Kc2 {[%emt 0:02:34]} Bc5 {[%emt 0:00:06]} 62. Kd3 {[%emt 0:03:24]} Nc1+ {[%emt 0:00:43]} 63. Kc3 {[%emt 0:01:11]} Ne2+ {[%emt 0:00:07]} 64. Kc2 {[%emt 0:00:18]} Nd4+ {[%emt 0:00:07]} 65. Kb2 {[%emt 0:00:12]} Ne2 {[%emt 0:00:33]} 66. Nd2 {[%emt 0:01:05]} Bd4+ {[%emt 0:01:01]} 67. Kb1 {[%emt 0:04:23]} Bc5 {[%emt 0:00:18]} 68. Kb2 {[%emt 0:02:11]} Bd4+ {[%emt 0:00:05]} 69. Kc2 {[%emt 0:00:14]} Bc5 {[%emt 0:00:06]} 70. Nb1 {[%emt 0:00:06]} Nd4+ {[%emt 0:00:10]} 71. Kb2 {[%emt 0:00:19]} Ne2 {[%emt 0:00:11]} 72. Bh3 {[%emt 0:00:30]} Bd4+ {[%emt 0:00:37]} 73. Kc2 {[%emt 0:00:17]} Bc5 {[%emt 0:00:05]} 74. Bg2 {[%emt 0:00:19]} Kd6 {[%emt 0:02:59]} 75. Kd2 {[%emt 0:01:13]} Nd4 {[%emt 0:00:12]} 76. Kc3 {[%emt 0:00:59]} Ne2+ {[%emt 0:00:12]} 77. Kb2 {[%emt 0:00:23]} Bd4+ {[%emt 0:00:09]} 78. Kc2 {[%emt 0:00:16]} Bc5 {[%emt 0:00:05]} 79. Kd2 {[%emt 0:02:34]} Nd4 {[%emt 0:00:06]} 80. Kc3 {[%emt 0:00:05]} Ne2+ {[%emt 0:00:09]} 81. Kc2 {[%emt 0:00:04]} Kc6 {[%emt 0:00:22]} 82. Kd3 {[%emt 0:00:00]} Nd4 {[%emt 0:00:00]} 83. Kc3 {[%emt 0:00:00]} Ne2+ {[%emt 0:00:00]} 84. Kb2 {[%emt 0:00:00]} Bd4+ {[%emt 0:00:00]} 85. Kc2 {[%emt 0:00:00]} Bc5 {[%emt 0:00:00]} 86. Bf1 {[%emt 0:00:00]} Nd4+ {[%emt 0:00:00]} 87. Kc3 {[%emt 0:00:00]} Nxf3 {[%emt 0:00:00]} 88. b4 {[%emt 0:00:00]} axb4+ {[%emt 0:00:00]} 89. axb4 {[%emt 0:00:00]} Bd4+ {[%emt 0:00:00]} 90. Kb3 {[%emt 0:00:00]} Be3 {[%emt 0:00:00]} 91. Kc2 {[%emt 0:00:00]} Nh2 {[%emt 0:00:00]} 92. Bh3 {[%emt 0:00:00]} Nf3 {[%emt 0:00:00]} 93. Bf1 {[%emt 0:00:00]} Nh2 {[%emt 0:00:00]} 94. Bh3 {[%emt 0:00:00]} Nf3 {[%emt 0:00:00]} 95. Bf1 {[%emt 0:00:00]} 1/2-1/2

[Event "GER-ch Youth-U12 2024"]
[Site "Willingen"]
[Date "2024.05.20"]
[Round "3"]
[White "Fischermann, Simon"]
[Black "Moskalenko, Michael"]
[Result "1/2-1/2"]
[ECO "B43"]
[WhiteElo "1789"]
[BlackElo "1574"]
[Annotator "NA"]
[PlyCount "118"]
[EventDate "2022.06.05"]
[EventType "swiss"]
[EventRounds "9"]
[EventCountry "GER"]
[SourceTitle "playchess.com"]
[Source "ChessBase"]
[SourceQuality "1"]
[TimeControl "40/4500+30:900+30"]

1. e4 {[%emt 0:00:00]} c5 {[%emt 0:00:00]} 2. Nf3 {[%emt 0:00:00]} e6 {[%emt 0:00:00]} 3. d4 {[%emt 0:00:00]} cxd4 {[%emt 0:00:00]} 4. Nxd4 {[%emt 0:00:00]} a6 {[%emt 0:00:00]} 5. Nc3 {[%emt 0:00:00]} Qc7 {[%emt 0:00:00]} 6. Bd3 {[%emt 0:00:00]} Nf6 {[%emt 0:00:00]} 7. Qe2 {[%emt 0:00:00]} Bd6 {[%emt 0:00:00]} 8. Bd2 {[%emt 0:00:00]} O-O {[%emt 0:00:00]} 9. Ndb5 {[%emt 0:00:00]} axb5 {[%emt 0:05:03]} 10. Nxb5 {[%emt 0:00:00]} Qb6 {[%emt 0:18:25]} 11. e5 {[%emt 0:00:00]} Bxe5 {[%emt 0:05:41]} 12. Qxe5 {[%emt 0:00:00]} Qxf2+ {[%emt 0:02:47]} 13. Kxf2 {[%emt 0:00:00]} Ng4+ {[%emt 0:00:34]} 14. Ke2 {[%emt 0:00:00]} Nxe5 {[%emt 0:00:51]} 15. Bb4 {[%emt 0:00:00]} d6 {[%emt 0:04:39]} 16. Bxd6 {[%emt 0:00:00]} Nxd3 {[%emt 0:08:44]} 17. Bxf8 {[%emt 0:00:28]} Nxb2 {[%emt 0:07:34]} 18. Rab1 {[%emt 0:13:03]} Rxa2 {[%emt 0:04:45]} 19. Nc3 {[%emt 0:00:15]} Ra6 {[%emt 0:04:10]} 20. Bxg7 {[%emt 0:01:21]} Kxg7 {[%emt 0:00:16]} 21. Rxb2 {[%emt 0:00:01]} e5 {[%emt 0:02:20]} 22. h3 {[%emt 0:02:47]} Rg6 {[%emt 0:02:26]} 23. g4 {[%emt 0:01:25]} Bd7 {[%emt 0:02:21]} 24. Rf1 {[%emt 0:02:19]} Bc6 {[%emt 0:01:51]} 25. Ke3 {[%emt 0:00:33]} Rh6 {[%emt 0:03:53]} 26. Ne4 {[%emt 0:01:03]} Rxh3+ {[%emt 0:06:52]} 27. Rf3 {[%emt 0:00:07]} Rh1 {[%emt 0:01:08]} 28. Nf2 {[%emt 0:00:14]} Bxf3 {[%emt 0:01:12]} 29. Kxf3 {[%emt 0:00:02]} Rc1 {[%emt 0:00:27]} 30. Nd3 {[%emt 0:00:30]} Rf1+ {[%emt 0:02:10]} 31. Kg2 {[%emt 0:00:19]} Rf6 {[%emt 0:00:38]} 32. Rxb7 {[%emt 0:01:03]} Nc6 {[%emt 0:00:07]} 33. Rc7 {[%emt 0:00:30]} Rg6 {[%emt 0:00:43]} 34. Kh3 {[%emt 0:01:09]} Re6 {[%emt 0:01:08]} 35. Nc5 {[%emt 0:00:47]} Rh6+ {[%emt 0:00:48]} 36. Kg3 {[%emt 0:01:09]} Nd4 {[%emt 0:00:22]} 37. Ne4 {[%emt 0:00:17]} Ra6 {[%emt 0:01:04]} 38. c4 {[%emt 0:01:57]} Ne6 {[%emt 0:00:25]} 39. Rd7 {[%emt 0:01:19]} Rc6 {[%emt 0:00:22]} 40. Nd6 {[%emt 0:03:13]} Ng5 {[%emt 0:00:34]} 41. Kh4 {[%emt 0:23:34]} Kf6 {[%emt 0:06:19]} 42. Ne8+ {[%emt 0:00:00]} Kg6 {[%emt 0:00:45]} 43. Rd6+ {[%emt 0:00:00]} Rxd6 {[%emt 0:00:06]} 44. Nxd6 {[%emt 0:00:00]} Ne6 {[%emt 0:01:56]} 45. Nb7 {[%emt 0:00:00]} e4 {[%emt 0:01:07]} 46. c5 {[%emt 0:00:00]} f5 {[%emt 0:01:46]} 47. c6 {[%emt 0:00:00]} e3 {[%emt 0:04:59]} 48. gxf5+ {[%emt 0:00:00]} Kxf5 {[%emt 0:00:10]} 49. Kg3 {[%emt 0:00:00]} Ke5 {[%emt 0:01:57]} 50. Kf3 {[%emt 0:00:00]} Nd4+ {[%emt 0:01:29]} 51. Kxe3 {[%emt 0:00:00]} Nxc6 {[%emt 0:00:05]} 52. Nc5 {[%emt 0:00:00]} Kf5 {[%emt 0:00:13]} 53. Kf3 {[%emt 0:00:00]} h5 {[%emt 0:00:31]} 54. Ne4 {[%emt 0:00:00]} Ne5+ {[%emt 0:00:20]} 55. Kg3 {[%emt 0:00:00]} Ng6 {[%emt 0:00:30]} 56. Nd2 {[%emt 0:00:00]} Ke5 {[%emt 0:00:20]} 57. Nf3+ {[%emt 0:00:00]} Kf5 {[%emt 0:00:35]} 58. Nh4+ {[%emt 0:00:00]} Nxh4 {[%emt 0:00:25]} 59. Kxh4 {[%emt 0:00:00]} Ke5 {[%emt 0:01:07]} 1/2-1/2

[Event "GER-ch Youth-U12 2024"]
[Site "Willingen"]
[Date "2024.05.20"]
[Round "3"]
[White "Noll, Raphael"]
[Black "Subocz, Barbara"]
[Result "0-1"]
[ECO "B22"]
[WhiteElo "1775"]
[BlackElo "1692"]
[Annotator "NA"]
[PlyCount "70"]
[EventDate "2022.06.05"]
[EventType "swiss"]
[EventRounds "9"]
[EventCountry "GER"]
[SourceTitle "playchess.com"]
[Source "ChessBase"]
[SourceQuality "1"]
[TimeControl "40/4500+30:900+30"]

1. e4 {[%emt 0:00:00]} c5 {[%emt 0:00:00]} 2. c3 {[%emt 0:00:00]} d5 {[%emt 0:00:00]} 3. exd5 {[%emt 0:00:00]} Qxd5 {[%emt 0:00:00]} 4. d4 {[%emt 0:00:00]} Nf6 {[%emt 0:00:00]} 5. Nf3 {[%emt 0:00:00]} Nc6 {[%emt 0:00:00]} 6. Be3 {[%emt 0:00:00]} cxd4 {[%emt 0:00:00]} 7. cxd4 {[%emt 0:00:00]} e6 {[%emt 0:00:00]} 8. Nc3 {[%emt 0:00:31]} Qd8 {[%emt 0:00:00]} 9. Be2 {[%emt 0:03:58]} Be7 {[%emt 0:00:00]} 10. O-O {[%emt 0:02:26]} O-O {[%emt 0:00:00]} 11. Qb3 {[%emt 0:03:29]} b6 {[%emt 0:03:10]} 12. Rfd1 {[%emt 0:03:01]} Bb7 {[%emt 0:01:36]} 13. Rac1 {[%emt 0:09:19]} Rc8 {[%emt 0:06:19]} 14. Ne5 {[%emt 0:06:59]} Nb4 {[%emt 0:04:33]} 15. Bf3 {[%emt 0:15:31]} Nbd5 {[%emt 0:01:55]} 16. Nb5 {[%emt 0:09:00]} a6 {[%emt 0:09:58]} 17. Na7 {[%emt 0:08:24]} Rxc1 {[%emt 0:00:46]} 18. Rxc1 {[%emt 0:01:19]} Qd6 {[%emt 0:02:00]} 19. Nac6 {[%emt 0:18:43]} Bxc6 {[%emt 0:01:34]} 20. Rxc6 {[%emt 0:00:31]} Qd8 {[%emt 0:00:44]} 21. Qc4 {[%emt 0:00:40]} Nxe3 {[%emt 0:01:36]} 22. fxe3 {[%emt 0:00:05]} Nd5 {[%emt 0:00:51]} 23. e4 {[%emt 0:00:52]} Nf6 {[%emt 0:00:43]} 24. d5 {[%emt 0:00:36]} exd5 {[%emt 0:00:53]} 25. exd5 {[%emt 0:00:02]} b5 {[%emt 0:00:44]} 26. Qd4 {[%emt 0:00:35]} Qa5 {[%emt 0:00:39]} 27. Kf2 {[%emt 0:01:09]} Qxa2 {[%emt 0:01:12]} 28. d6 {[%emt 0:00:24]} Bd8 {[%emt 0:00:24]} 29. d7 {[%emt 0:00:15]} Qa5 {[%emt 0:00:23]} 30. b4 {[%emt 0:00:50]} Qa2+ {[%emt 0:00:32]} 31. Kg3 {[%emt 0:00:06]} Qb1 {[%emt 0:00:56]} 32. Rc8 {[%emt 0:00:57]} Qe1+ {[%emt 0:01:09]} 33. Kh3 {[%emt 0:00:12]} h6 {[%emt 0:01:20]} 34. Qd6 {[%emt 0:01:23]} Nxd7 {[%emt 0:00:38]} 35. Nxd7 {[%emt 0:00:27]} Qh4# {[%emt 0:00:25]} 0-1

[Event "GER-ch Youth-U12 2024"]
[Site "Willingen"]
[Date "2024.05.20"]
[Round "3"]
[White "Fadeev, Justin Michael"]
[Black "Zhang, Yibo"]
[Result "1/2-1/2"]
[ECO "C54"]
[WhiteElo "1762"]
[BlackElo "1988"]
[Annotator "NA"]
[PlyCount "61"]
[EventDate "2022.06.05"]
[EventType "swiss"]
[EventRounds "9"]
[EventCountry "GER"]
[SourceTitle "playchess.com"]
[Source "ChessBase"]
[SourceQuality "1"]
[TimeControl "40/4500+30:900+30"]

1. e4 {[%emt 0:00:00]} e5 {[%emt 0:00:00]} 2. Nf3 {[%emt 0:00:00]} Nc6 {[%emt 0:00:00]} 3. d4 {[%emt 0:00:00]} exd4 {[%emt 0:00:00]} 4. Bc4 {[%emt 0:00:00]} Bc5 {[%emt 0:00:00]} 5. c3 {[%emt 0:00:00]} Nf6 {[%emt 0:00:00]} 6. cxd4 {[%emt 0:00:00]} Bb4+ {[%emt 0:00:00]} 7. Bd2 {[%emt 0:00:00]} Nxe4 {[%emt 0:00:00]} 8. Bxb4 {[%emt 0:00:00]} Nxb4 {[%emt 0:00:00]} 9. Bxf7+ {[%emt 0:00:00]} Kxf7 {[%emt 0:00:00]} 10. Qb3+ {[%emt 0:00:00]} Kf8 {[%emt 0:00:00]} 11. Qxb4+ {[%emt 0:00:00]} Qe7 {[%emt 0:00:00]} 12. Qxe7+ {[%emt 0:00:00]} Kxe7 {[%emt 0:00:00]} 13. O-O {[%emt 0:00:00]} Re8 {[%emt 0:00:00]} 14. Re1 {[%emt 0:00:00]} Kf8 {[%emt 0:00:00]} 15. Na3 {[%emt 0:00:00]} c6 {[%emt 0:00:00]} 16. Ne5 {[%emt 0:02:47]} d5 {[%emt 0:00:00]} 17. Re3 {[%emt 0:06:31]} a5 {[%emt 0:25:11]} 18. Rae1 {[%emt 0:14:06]} Ra6 {[%emt 0:02:52]} 19. Nc2 {[%emt 0:18:45]} c5 {[%emt 0:17:48]} 20. Nd3 {[%emt 0:11:46]} c4 {[%emt 0:05:38]} 21. Nf4 {[%emt 0:07:42]} Rb6 {[%emt 0:06:46]} 22. b3 {[%emt 0:01:24]} cxb3 {[%emt 0:03:59]} 23. axb3 {[%emt 0:03:22]} Rc6 {[%emt 0:04:46]} 24. Na3 {[%emt 0:01:22]} Nf6 {[%emt 0:02:37]} 25. Nxd5 {[%emt 0:05:31]} Rxe3 {[%emt 0:01:01]} 26. Nxe3 {[%emt 0:00:07]} Rc3 {[%emt 0:04:01]} 27. Nac4 {[%emt 0:06:53]} Rxb3 {[%emt 0:01:01]} 28. Nxa5 {[%emt 0:00:06]} Rb4 {[%emt 0:00:55]} 29. Rd1 {[%emt 0:00:22]} Be6 {[%emt 0:00:41]} 30. h3 {[%emt 0:00:19]} Nd5 {[%emt 0:00:35]} 31. Rc1 {[%emt 0:04:26]} 1/2-1/2

[Event "GER-ch Youth-U12 2024"]
[Site "Willingen"]
[Date "2024.05.20"]
[Round "3"]
[White "Rau, Eduard"]
[Black "Wagener, Nicolas"]
[Result "1-0"]
[ECO "B45"]
[WhiteElo "1756"]
[BlackElo "1713"]
[Annotator "NA RC"]
[PlyCount "53"]
[EventDate "2022.06.05"]
[EventType "swiss"]
[EventRounds "9"]
[EventCountry "GER"]
[SourceTitle "playchess.com"]
[Source "ChessBase"]
[SourceQuality "1"]
[TimeControl "40/4500+30:900+30"]

1. e4 {[%emt 0:00:00]} c5 {[%emt 0:00:00]} 2. Nf3 {[%emt 0:00:00]} e6 {[%emt 0:00:00]} 3. d4 {[%emt 0:00:00]} cxd4 {[%emt 0:00:00]} 4. Nxd4 {[%emt 0:00:00]} Nf6 {[%emt 0:00:00]} 5. Nc3 {[%emt 0:00:00]} Nc6 {[%emt 0:00:00]} 6. Bf4 {[%emt 0:00:00]} Bb4 {[%emt 0:00:00]} 7. Ndb5 {[%emt 0:00:00]} e5 {[%emt 0:00:00]} 8. Bg5 {[%emt 0:00:00]} O-O {[%emt 0:00:00]} 9. a3 {[%emt 0:00:00]} Be7 {[%emt 0:00:00]} 10. Bxf6 {[%emt 0:00:00]} Bxf6 {[%emt 0:00:00]} 11. Bc4 {[%emt 0:00:00]} a6 {[%emt 0:00:00]} 12. Nd6 {[%emt 0:00:00]} Be7 {[%emt 0:00:00]} 13. Nf5 {[%emt 0:00:00]} d6 {[%emt 0:00:00]} 14. g4 {[%emt 0:00:00]} Bxf5 {[%emt 0:00:00]} 15. gxf5 {[%emt 0:00:00]} Nd4 {[%emt 0:00:00]} 16. Nd5 {[%emt 0:00:00]} Rc8 {[%emt 0:00:00]} 17. Bd3 {[%emt 0:00:00]} Bh4 {[%emt 0:19:07]} 18. c3 {[%emt 0:01:14]} Nc6 {[%emt 0:00:56]} 19. Rg1 {[%emt 0:02:20]} Ne7 {[%emt 0:10:54]} 20. Qg4 {[%emt 0:00:15]} g5 {[%emt 0:01:24]} 21. Qxh4 {[%emt 0:00:44]} Nxd5 {[%emt 0:00:51]} 22. Rxg5+ {[%emt 0:02:12]} Kh8 {[%emt 0:00:11]} 23. exd5 {[%emt 0:00:09]} Rg8 {[%emt 0:00:16]} 24. Rxg8+ {[%emt 0:00:08]} Qxg8 {[%emt 0:00:06]} 25. Qf6+ {[%emt 0:00:07]} Qg7 {[%emt 0:00:05]} 26. Qxg7+ {[%emt 0:00:03]} Kxg7 {[%emt 0:00:06]} 27. O-O-O {[%emt 0:00:04]} 1-0

[Event "GER-ch Youth-U12 2024"]
[Site "Willingen"]
[Date "2024.05.20"]
[Round "3"]
[White "Wettstein, Levin"]
[Black "Gersemann, Karl"]
[Result "0-1"]
[ECO "C55"]
[WhiteElo "1753"]
[BlackElo "1729"]
[Annotator "NA"]
[PlyCount "126"]
[EventDate "2022.06.05"]
[EventType "swiss"]
[EventRounds "9"]
[EventCountry "GER"]
[SourceTitle "playchess.com"]
[Source "ChessBase"]
[SourceQuality "1"]
[TimeControl "40/4500+30:900+30"]

1. e4 {[%emt 0:00:00]} e5 {[%emt 0:00:00]} 2. Nf3 {[%emt 0:00:00]} Nc6 {[%emt 0:00:00]} 3. Bc4 {[%emt 0:00:00]} Nf6 {[%emt 0:00:00]} 4. d3 {[%emt 0:00:00]} Be7 {[%emt 0:00:00]} 5. Nbd2 {[%emt 0:00:00]} O-O {[%emt 0:00:00]} 6. O-O {[%emt 0:00:00]} d5 {[%emt 0:00:00]} 7. exd5 {[%emt 0:00:00]} Nxd5 {[%emt 0:00:00]} 8. h3 {[%emt 0:00:00]} Kh8 {[%emt 0:00:00]} 9. Ne4 {[%emt 0:00:00]} f6 {[%emt 0:00:00]} 10. Nc3 {[%emt 0:04:55]} Nb6 {[%emt 0:00:00]} 11. Bb3 {[%emt 0:03:36]} a5 {[%emt 0:00:00]} 12. a3 {[%emt 0:00:42]} Nd4 {[%emt 0:06:52]} 13. Nxd4 {[%emt 0:04:17]} exd4 {[%emt 0:00:10]} 14. Ne2 {[%emt 0:00:40]} c5 {[%emt 0:06:41]} 15. Ng3 {[%emt 0:11:53]} Bd7 {[%emt 0:09:07]} 16. Bd2 {[%emt 0:03:36]} f5 {[%emt 0:02:31]} 17. Qc1 {[%emt 0:15:35]} Bc6 {[%emt 0:08:11]} 18. Bf4 {[%emt 0:03:07]} Nd5 {[%emt 0:03:26]} 19. Nh5 {[%emt 0:03:48]} Nxf4 {[%emt 0:07:27]} 20. Nxf4 {[%emt 0:04:56]} Bg5 {[%emt 0:00:37]} 21. Ne6 {[%emt 0:07:12]} Bxc1 {[%emt 0:00:31]} 22. Nxd8 {[%emt 0:00:11]} Bxb2 {[%emt 0:00:21]} 23. Ra2 {[%emt 0:00:24]} Raxd8 {[%emt 0:00:18]} 24. Rxb2 {[%emt 0:00:07]} b5 {[%emt 0:01:44]} 25. Rfb1 {[%emt 0:01:58]} f4 {[%emt 0:04:25]} 26. f3 {[%emt 0:01:05]} Rfe8 {[%emt 0:05:43]} 27. Kf2 {[%emt 0:00:42]} Re3 {[%emt 0:02:38]} 28. Bf7 {[%emt 0:01:09]} Rd7 {[%emt 0:02:19]} 29. Bc4 {[%emt 0:01:05]} b4 {[%emt 0:01:17]} 30. axb4 {[%emt 0:00:36]} cxb4 {[%emt 0:02:11]} 31. Ra1 {[%emt 0:01:00]} Re5 {[%emt 0:01:32]} 32. Rbb1 {[%emt 0:01:57]} g6 {[%emt 0:02:21]} 33. Re1 {[%emt 0:02:00]} Rde7 {[%emt 0:01:04]} 34. Rxe5 {[%emt 0:00:27]} Rxe5 {[%emt 0:00:10]} 35. Bb3 {[%emt 0:00:36]} Kg7 {[%emt 0:04:07]} 36. Ra2 {[%emt 0:00:50]} Kf6 {[%emt 0:01:20]} 37. Ra1 {[%emt 0:00:28]} Ke7 {[%emt 0:00:41]} 38. Ra2 {[%emt 0:00:19]} Kd6 {[%emt 0:00:29]} 39. Ra1 {[%emt 0:00:14]} Kc7 {[%emt 0:00:10]} 40. Ra2 {[%emt 0:00:13]} Kb6 {[%emt 0:00:20]} 41. Ra1 {[%emt 0:15:14]} a4 {[%emt 0:15:55]} 42. Bxa4 {[%emt 0:00:23]} Ra5 {[%emt 0:00:07]} 43. Bxc6 {[%emt 0:00:58]} Rxa1 {[%emt 0:00:05]} 44. Bd5 {[%emt 0:00:08]} Kc5 {[%emt 0:01:08]} 45. Bb3 {[%emt 0:00:45]} Kd6 {[%emt 0:00:28]} 46. g3 {[%emt 0:02:23]} fxg3+ {[%emt 0:01:20]} 47. Kxg3 {[%emt 0:00:08]} Ke5 {[%emt 0:00:44]} 48. Bc4 {[%emt 0:01:43]} Rc1 {[%emt 0:00:43]} 49. Bb3 {[%emt 0:00:13]} g5 {[%emt 0:01:04]} 50. Ba4 {[%emt 0:00:30]} h5 {[%emt 0:01:23]} 51. Bb3 {[%emt 0:03:00]} h4+ {[%emt 0:02:11]} 52. Kg2 {[%emt 0:00:54]} Kf4 {[%emt 0:00:25]} 53. Kf2 {[%emt 0:00:09]} Rd1 {[%emt 0:00:52]} 54. Ke2 {[%emt 0:01:23]} Rh1 {[%emt 0:00:13]} 55. Kf2 {[%emt 0:00:05]} Rh2+ {[%emt 0:00:33]} 56. Kg1 {[%emt 0:00:14]} Rxh3 {[%emt 0:00:17]} 57. Kg2 {[%emt 0:00:42]} Rxf3 {[%emt 0:00:16]} 58. Bd5 {[%emt 0:00:14]} h3+ {[%emt 0:00:24]} 59. Kg1 {[%emt 0:00:27]} g4 {[%emt 0:01:08]} 60. c3 {[%emt 0:00:49]} dxc3 {[%emt 0:00:44]} 61. Bb3 {[%emt 0:00:13]} Kg3 {[%emt 0:00:14]} 62. Bd1 {[%emt 0:00:44]} h2+ {[%emt 0:00:08]} 63. Kh1 {[%emt 0:00:03]} Rf1# {[%emt 0:00:48]} 0-1